Cogmind - Beta 13 @@@ ROGUE MODE // 2024.03.31 @ 21:23:19 Player: SunoPerson Result: Self-destructed Performance ------------- Evolutions (1) 500 Regions Visited (3) 600 Robots Destroyed (26) 130 Value Destroyed (390) 390 Prototype IDs (0) 0 Alien Tech Used (0) 0 Bonus (0) 0 TOTAL SCORE: 1620 Bonus ------- None Cogmind --------- Core Integrity 189/400 Matter 300/300 Energy 100/100 System Corruption 0% Temperature Cool (0) Movement Core (700) Ox13 Location -9/Materials Parts ------- > --- POWER (1) -------- (None) > --- PROPULSION (2) --- (None) > --- UTILITY (3) ------ High-capacity Storage Unit > --- WEAPON (3) ------- (None) > --- INVENTORY (20) --- Heat Sink Large Storage Unit ECM Suite Hardened Light Armor Plating Hardened Light Armor Plating Hardened Light Armor Plating Hardened Light Armor Plating Peak State ------------ > --- POWER ------------ Light Ion Engine > --- PROPULSION ------- Aluminum Leg Hover Unit > --- UTILITY ---------- Large Storage Unit Improved Terrain Scanner > --- WEAPON ----------- Light Assault Rifle Mining Laser > --- INVENTORY -------- Heat Sink Targeting Computer ECM Suite [Rating: 9] Favorites ----------- Power Light Ion Engine Engine Light Ion Engine Propulsion Aluminum Leg Treads Light Treads Leg Aluminum Leg Hover Unit Hover Unit Flight Unit Flight Unit Utility Improved Terrain Scanner Device Improved Terrain Scanner Storage Small Storage Unit Processor Targeting Computer Weapon Light Assault Rifle Energy Gun EM Pulse Gun Ballistic Gun Light Assault Rifle Special Weapon Mining Laser Build | -11 -10 -10 -9 ------- Run | Yrd Mat Min Mat Slots Evolved 2 | . . . 2 Power . | . . . . Propulsion . | . . . . Utility 1 | . . . 1 Weapon 1 | . . . 1 Parts Attached 24 | 6 9 5 4 Power 2 | . 1 1 . Engine 2 | . 1 1 . Core . | . . . . Reactor . | . . . . Propulsion 6 | 2 4 . . Treads 2 | 2 . . . Leg 2 | . 2 . . Wheel . | . . . . Hover 1 | . 1 . . Flight 1 | . 1 . . Utility 6 | 2 1 . 3 Device 2 | 1 . . 1 Storage 3 | 1 1 . 1 Processor 1 | . . . 1 Hackware . | . . . . Protection . | . . . . Artifact . | . . . . Weapon 10 | 2 3 4 1 Energy Gun 1 | 1 . . . Energy Cannon . | . . . . Ballistic Gun 4 | 1 1 2 . Ballistic Cannon . | . . . . Launcher . | . . . . Special Weapon 5 | . 2 2 1 Impact Weapon . | . . . . Slashing Weapon . | . . . . Piercing Weapon . | . . . . Special Melee Weapon . | . . . . Unidentified Prototypes . | . . . . Parts Lost 15 | . 4 6 5 Power 2 | . . 2 . Propulsion 4 | . 2 1 1 Utility 2 | . . . 2 Weapon 7 | . 2 3 2 Highest Loss Streak 4 | . 1 4 4 To Critical Strikes . | . . . . Average Slot Usage (%) 72 | . 80 66 59 Engine 5 | . 9 1 . Treads 2 | . 4 . . Leg 8 | . 5 17 10 Hover 4 | . 8 . . Device 13 | . 14 14 11 Storage 13 | . 14 14 11 Processor 3 | . . . 10 Ballistic Gun 13 | . 15 12 10 Special Weapon 6 | . 7 5 6 Naked Turns . | . . . . Heaviest Build 43 | 9 26 26 43 Greatest Support 40 | 40 40 20 10 Greatest Overweight (x) 13 | . 4 2 13 Average Overweight (x) 1 | . 1 1 4 Largest Inventory Capacity 20 | 8 15 15 20 Average Capacity 13 | 7 10 15 19 Most Carried 7 | 1 5 5 7 Average Carried 3 | . 2 4 4 Final Capacity 20 | 8 15 15 20 Final Carried 7 | 1 5 4 7 Class Distribution -------------------- 100% | Mutant Dominant Class ---------------- Mutant | -10/Materials Mutant | -10/Mines Mutant | -9/Materials Resources | -11 -10 -10 -9 ----------- Run | Yrd Mat Min Mat Matter Collected 471 | 274 105 41 51 Remotely . | . . . . Salvage Created 585 | 125 297 54 109 Parts 60 | 12 35 8 5 Haulers Intercepted . | . . . . Recyclers Shooed 1 | . . . 1 Parts Field Recycled . | . . . . Retrieved Matter . | . . . . Parts Self-Destructed . | . . . . Prevented . | . . . . Kills | -11 -10 -10 -9 ------- Run | Yrd Mat Min Mat Combat Hostiles Destroyed 20 | . 13 5 2 Guns 18 | . 13 3 2 Cannons 2 | . . 2 . Classes Destroyed 6 | 2 4 . . Builder 2 | . 1 . 1 Tunneler 2 | 2 . . . Recycler 1 | 1 . . . Watcher 1 | . 1 . . Swarmer 14 | . 9 5 . Grunt 6 | . 4 . 2 Best Kill Streak 4 | 2 4 2 2 Combat Bots Only 4 | . 4 2 2 Max Kills in Single Turn 1 | 1 1 1 1 Gunslinging . | . . . . Exploded . | . . . . Melee . | . . . . Uniques/NPCs Destroyed . | . . . . Combat | -11 -10 -10 -9 -------- Run | Yrd Mat Min Mat Hostile Shots Fired 194 | . 92 53 49 Missed 42 | . 18 9 15 Damage Taken 1479 | . 699 345 435 Core 418 | . 146 61 211 Absorbed by Shields . | . . . . Core Remaining (%) 58 | 100 . 17 . Volleys Fired 115 | 14 72 13 16 Largest 2 | 2 2 2 2 Hottest 200 | 60 120 200 120 Shots Fired 143 | 19 85 20 19 Gun 124 | 19 80 9 16 Cannon . | . . . . Launcher . | . . . . Special 19 | . 5 11 3 Kinetic 116 | 14 77 9 16 Thermal 19 | . 5 11 3 Explosive . | . . . . Electromagnetic 8 | 5 3 . . Robot Hit Streak 24 | 5 24 6 10 Robot Miss Streak 3 | 3 3 3 3 Penetration Max . | . . . . Secondary Targets 1 | . 1 . . Max Gunslinging Chain 1 | . 1 . . Shots Hit Robots 95 | 10 61 10 14 Core Hits 45 | 6 27 5 7 Critical Kills 2 | . 1 1 . Critical Parts Destroyed . | . . . . Critical Strikes 2 | . 1 1 . Destroy 2 | . 1 1 . Melee Attacks . | . . . . Impact . | . . . . Slashing . | . . . . Piercing . | . . . . Sneak Attacks . | . . . . Combat Hostiles . | . . . . Follow-up Attacks . | . . . . Damage Inflicted 927 | 96 541 156 134 Guns 710 | 92 455 55 108 Cannons . | . . . . Explosions . | . . . . Melee . | . . . . Ramming 19 | 4 10 5 . Kinetic 672 | 66 443 55 108 Thermal 198 | . 76 96 26 Explosive . | . . . . Electromagnetic 38 | 26 12 . . Impact . | . . . . Slashing . | . . . . Piercing . | . . . . Highest Corruption . | . . . . Average Corruption . | . . . . Corruption Purged . | . . . . Corruption Blocked . | . . . . Overload Shots . | . . . . Overflow Damage . | . . . . Projectiles . | . . . . Explosions . | . . . . Melee . | . . . . Knockbacks 1 | 1 . . . Impact 1 | 1 . . . Kinetic . | . . . . Secondary . | . . . . Self-Inflicted Damage 4 | . 4 . . Shots . | . . . . Rammed 3 | 2 1 . . Targets Rammed 9 | 2 2 5 . Kicked 6 | . 1 5 . Crushed . | . . . . Highest Temperature 124 | 10 124 100 8 Average Temperature 30 | 7 32 40 5 Received Heat Transfer 360 | . 168 . 192 Siege Activations . | . . . . Robots Corrupted . | . . . . Combat Hostiles . | . . . . Parts Fried . | . . . . Impact Corruptions . | . . . . Robots Melted . | . . . . Combat Hostiles . | . . . . Parts Melted . | . . . . Heat Transferred 400 | . 150 200 50 Parts Sabotaged . | . . . . Parts Stolen . | . . . . Parts Stripped . | . . . . Power Chain Reactions . | . . . . Alert | -11 -10 -10 -9 ------- Run | Yrd Mat Min Mat Peak Influence 242 | 15 242 93 55 Initial 1 | . . 1 . Average 57 | 10 90 77 14 Maximum Alert Level 1 | . 1 . . Low Security (%) 93 | 100 85 100 100 Level 1 6 | . 14 . . Level 2 . | . . . . Level 3 . | . . . . Level 4 . | . . . . Level 5 . | . . . . High Security . | . . . . Max Security . | . . . . Squads Dispatched 2 | . 2 . . Investigation 1 | . 1 . . Extermination . | . . . . Reinforcement 1 | . 1 . . Assault . | . . . . Garrison . | . . . . Intercept . | . . . . Searches Triggered . | . . . . Construction Impeded . | . . . . Haulers Reinforced . | . . . . Active Scanning Responses . | . . . . Cargo Convoy Interrupts . | . . . . Stealth | -11 -10 -10 -9 --------- Run | Yrd Mat Min Mat Distress Signals 2 | . 2 . . Communications Jammed . | . . . . Distress Signals . | . . . . Times Spotted 32 | . 19 7 6 Peak Tracking Total 6 | . 6 3 4 Tactical Retreats 2 | . 1 1 . Traps | -11 -10 -10 -9 ------- Run | Yrd Mat Min Mat Traps Triggered . | . . . . Indirectly . | . . . . Trap Hack Attempts . | . . . . Triggered . | . . . . Disarmed 1 | . 1 . . Reprogrammed . | . . . . Reused . | . . . . Traps Extracted . | . . . . Installed . | . . . . Triggered . | . . . . Machines | -11 -10 -10 -9 ---------- Run | Yrd Mat Min Mat Machines Disabled . | . . . . Max in Single Turn . | . . . . Machines Repaired . | . . . . Machines Dismantled . | . . . . Machines Sabotaged . | . . . . Overloaded Fab Kills . | . . . . Hacking | -11 -10 -10 -9 --------- Run | Yrd Mat Min Mat Machines Accessed 6 | . 6 . . Terminals 6 | . 6 . . Fabricators . | . . . . Repair Stations . | . . . . Recycling Units . | . . . . Scanalyzers . | . . . . Garrison Access . | . . . . Total Hacks 24 | . 24 . . Successful 17 | . 17 . . Failed 6 | . 6 . . Catastrophic . | . . . . Database Lockouts 1 | . 1 . . Manual 11 | . 11 . . Terminals 24 | . 24 . . Fabricators . | . . . . Repair Stations . | . . . . Recycling Units . | . . . . Scanalyzers . | . . . . Garrison Access . | . . . . Terminal Hacks 17 | . 17 . . Record 2 | . 2 . . Robot Analysis 4 | . 4 . . Emergency Access Points 2 | . 2 . . Alert Level 2 | . 2 . . Unreport Threat 1 | . 1 . . Locate Traps 2 | . 2 . . Disarm Traps 1 | . 1 . . Security Status 1 | . 1 . . Hauler Manifests 1 | . 1 . . Zone Layout 1 | . 1 . . Fabricator Hacks . | . . . . Repair Station Hacks . | . . . . Recycling Unit Hacks . | . . . . Scanalyzer . | . . . . Garrison Access Hacks . | . . . . Unauthorized Hacks . | . . . . Terminals . | . . . . Fabricators . | . . . . Repair Stations . | . . . . Recycling Units . | . . . . Scanalyzers . | . . . . Garrison Access . | . . . . Data Cores Recovered . | . . . . Used . | . . . . Hacking Detections 6 | . 6 . . Full Trace Events 2 | . 2 . . Feedback Events . | . . . . Feedback Blocked . | . . . . Robot Schematics Acquired . | . . . . Robots Built . | . . . . Authchips . | . . . . Time . | . . . . Total Robot Build Rating . | . . . . Part Schematics Acquired . | . . . . Parts Built . | . . . . Authchips . | . . . . Time . | . . . . Total Part Build Rating . | . . . . Parts Repaired . | . . . . Time . | . . . . Parts Recycled . | . . . . Recycled Matter . | . . . . Retrieved Matter . | . . . . Retrieved Components . | . . . . Parts Scanalyzed . | . . . . Part Schematics Acquired . | . . . . Parts Damaged . | . . . . Bothacking | -11 -10 -10 -9 ------------ Run | Yrd Mat Min Mat Used RIF Installer . | . . . . Robots Hacked . | . . . . Non-combat . | . . . . Combat . | . . . . Robot Hacks Applied . | . . . . Relay Couplers Released . | . . . . Fabnet Peak Effective % . | . . . . Robots Rewired . | . . . . Allies Hacked . | . . . . Hacks Repelled . | . . . . Allies | -11 -10 -10 -9 -------- Run | Yrd Mat Min Mat Total Allies . | . . . . Largest Group . | . . . . Highest-Rated Group . | . . . . Highest-Rated Ally . | . . . . Total Orders . | . . . . Ally Attacks . | . . . . Total Damage . | . . . . Kills . | . . . . Allies Corrupted . | . . . . Allies Melted . | . . . . Intel | -11 -10 -10 -9 ------- Run | Yrd Mat Min Mat Robot Analysis Total 4 | . 4 . . Derelict Logs Recovered 2 | . . 2 . Drone Launches . | . . . . Drone Recoveries . | . . . . Exploration | -11 -10 -10 -9 ------------- Run | Yrd Mat Min Mat Turns Passed 2974 | 454 1377 400 743 Spaces Moved 1093 | 96 689 132 176 Core 163 | 3 155 . 5 Treads 164 | 93 71 . . Legs 472 | . 169 132 171 Wheels . | . . . . Hover 294 | . 294 . . Flight . | . . . . Fastest Speed 50 | 50 120 190 260 Average Speed 212 | 156 168 243 393 Slowest Speed 700 | 160 300 260 700 Overloaded Moves . | . . . . Propulsion Burnouts . | . . . . Robots Hopped . | . . . . Cave-ins Triggered . | . . . . Exploration Rate (%) 36 | 12 78 45 12 Regions Visited 3 Branch Regions 1 Pre-discovered Areas . | . . . . Known Exits Taken . | . . . . Unknown Exits Taken 3 | 1 1 1 . Scrap Searched 1 | . . 1 . Spaces Dug . | . . . . Terrain Destroyed 5 | . 1 2 2 Melee . | . . . . Projectile 5 | . 1 2 2 AOE . | . . . . Terrain Rammed . | . . . . Walls Destroyed . | . . . . Machines Disabled . | . . . . Actions | -11 -10 -10 -9 --------- Run | Yrd Mat Min Mat Total 1569 | 379 821 166 203 Wait 318 | 261 42 12 3 Move 1090 | 95 688 131 176 Hop . | . . . . Pick Up 10 | 1 5 . 4 Fast Attach 13 | 6 5 2 . Attach 5 | . 2 1 2 Detach . | . . . . Swap 6 | . 2 2 2 Drop 3 | . 3 . . Fire 115 | 14 72 13 16 Melee . | . . . . Ram 1 | . 1 . . Kick 6 | . 1 5 . Crush 2 | 2 . . . Escape Stasis . | . . . . Rewire . | . . . . Trap . | . . . . Miscellaneous . | . . . . Route ------- -11/Scrapyard -10/Materials (discovered 4 exits: [*Mat x2] / [*Min] / [*Sub]) -10/Mines -9/Materials (discovered 1 exit: Mat) History --------- Turn | Location | Event 5 | -11/Scrapyard | Discovered new exit (range 15) 455 | -11/Scrapyard | Entered Materials 456 | -10/Materials | Build established: Mutant 789 | -10/Materials | Discovered new exit (range 3) 983 | -10/Materials | Discovered new exit (range 9) 1005 | -10/Materials | Central database locked down 1049 | -10/Materials | Discovered new exit (range 3) 1128 | -10/Materials | Discovered new exit (range 16) 1228 | -10/Materials | Core integrity fell below 50% 1832 | -10/Materials | Entered Mines 1930 | -10/Mines | Learned location of 1 exit from Materials 1966 | -10/Mines | Core integrity fell below 20% 2005 | -10/Mines | Lost 4 parts (1p1n2w) 2067 | -10/Mines | Learned Materials garrison access intel 2204 | -10/Mines | Discovered new exit (range 12) 2232 | -10/Mines | Entered Materials 2232 | -9/Materials | Evolved 2 slots: Utility x1, Weapon x1 2233 | -9/Materials | Identified exit to Materials 2975 | -9/Materials | Core integrity fell below 50% 2975 | -9/Materials | Self-destructed Last Messages --------------- Mining Laser destroyed. G-34 Mercenary destroyed. Acquired 16 matter. R-06 Scavenger collects Sml. Laser. G-34 Mercenary destroyed. R-06 Scavenger collects Aluminum Leg. Acquired 5 matter. K-01 Serf collects debris. R-06 Scavenger collects Ion Engine. K-01 Serf cleans the Fusion Modulator. Acquired 2 matter. Acquired Hrd. Light Armor Plating. K-01 Serf collects debris. Aluminum Leg destroyed. U-05 Engineer builds a Door. Lgt. Assault Rifle destroyed. Targeting Computer destroyed. Critical hit (Burn: +37). Imp. Terrain Scanner destroyed. Knocked back. Map ----- +----------------------------------------------------+ | ??????????????????????????????? | | ??????????????????????????????? | | ??????????????????????????????? | | ??????????????????????????????? | | ??????????????????????????????? | | ??????????????????????????????? | | ??????????????????????????????? | | ??????????????????????????????? | | ??????????????????????????????? | | ??????????????????????????????? | | ??????????????????????????????? | | ??????????????????????????????? | | ??????????????????????????????? | | ??????????????????????????????? | | ??????????????????????????????? | | ???????? ???????????????????? | | ???????? ??????????????????? | | ??????? ? ????????????????? | | ? ????? ??????????????????? | | ???????# #??????????????????? | | ???????# #??#???????????????? | | ???????# #??#???????????????? | | ######## #??##?????#????????? | | # # #?? ? ????????????? | | #""" # #? ???????????????? | | #""" ]@# # ? ?????????????? | | #""" # # ????????? ???????? | | # b# +? ??? #? ???? ????? | | #""" g # #??#???#???????????? | | #"""Yg + #??????#?#?#?#?????? | | #""" # #?????##???#???????? | | # # ##########?????#???? | | #""" # # ##??##????? | | #""" # # #?????????? | | #""" # # ! #????#????? | | # # # #??????#??? | | ######## +% #???#?????? | | #?#???## # """ ##????#???? | | ###??#?# # """ #?????????? | | ??##???# #%""" ##??###???? | | ######## # ##?#??????? | | # = # #####+#####???###??? | | # # # #?????##???? | | #""" + + #?#????#???? | | #""" # # ##??##?????? | | #""" # #########?##???????? | | # # ########???????????? | | ######## # #???#?#?????? | | # # # #?#?##??????? | | # # # """ #???????????? | +----------------------------------------------------+ Best States ------------- Heat Dissipation 28 Energy Generation 10 Energy Capacity 125 Matter Stores 300 Matter Capacity 300 Sight Range 16 Terrain Scan Range 16 Terrain Scan Density 10 Evasion (%) 40 Targeting Accuracy 5 Recoil Reduction 2 Item Schematics ----------------- None Robot Schematics ------------------ None Fabricated ------------ Nothing Alien Tech Used ----------------- None Achievements -------------- Armchair Analyst Challenges ------------ None Game ------ Seed CloakParticleSuperbattery Manual? 0 Play Time 00:20:26 Cumulative 3.3 hours Start 2024.03.31 @ 21:03:40 End 2024.03.31 @ 21:23:19 Sessions 1 Manual Loads 0 Difficulty Rogue Special Mode None Game No. 5 Rogue 5 Adventurer 0 Explorer 0 Win Type - Total 0 Types 0/0/0/0/0/0/0/0/0 Lore% 6 Gallery% 10 Achievement% 11 Wizard Run 0 Options --------- Layout 1 ASCII 0 Keyboard 0 Movement Numpad Keybinds 0 Fullscreen 1 Font 32/Terminus Map View 50x35 Zoom Use 0% Tactical HUD 0 Map Filters NONE Filters NONE Steam 1 RUN: 39efa9e0-8bd0-4211-b949-1a9c9543a06c